bitfinex/quotes_SOLUSD_20251118
["timestamp","ask_amount","ask_price","bid_price","bid_amount"]
[1763490986954,9.67091779,141.4,141.35,14.79091779]
[1763490987292,10.35091779,141.4,141.35,5.12]
[1763490987480,0.68,141.4,141.36,0.72]
[1763490987641,9.67091779,141.4,141.35,14.07091779]
[1763490987847,10.35091779,141.39,141.35,4.4]
[1763490988183,9.67091779,141.38,141.35,4.4]
[1763490988390,9.67091779,141.37,141.35,4.4]
[1763490988543,10.35091779,141.37,141.35,4.4]
[1763490988746,18.12096,141.42,141.35,4.4]
[1763490989044,10.35091779,141.37,141.35,4.4]
[1763490989463,10.35091779,141.37,141.35,0.2]
[1763490990075,10.35091779,141.36,141.35,0.2]
[1763490991858,28.47187779,141.36,141.35,0.2]
[1763490992061,10.35091779,141.36,141.35,0.2]
[1763490994782,34.39363857,141.36,141.35,0.2]
[1763490994964,19.1112692,141.36,141.35,0.2]
[1763490995872,6.48385088,141.36,141.35,0.2]
[1763490997486,24.60481088,141.36,141.35,0.2]
[1763490997986,18.12096,141.36,141.35,0.2]
[1763490998162,10.68385088,141.38,141.35,0.2]
[1763490998361,5.80385088,141.38,141.35,0.92]
[1763490998806,5.80385088,141.39,141.35,0.92]
[1763490999107,6.48385088,141.39,141.35,0.92]
[1763490999407,6.48385088,141.38,141.35,0.2]
[1763490999782,0.68,141.38,141.35,0.2]
[1763490999983,18.12096,141.37,141.35,0.2]
[1763491001309,18.12096,141.37,141.35,0.92]
[1763491002005,18.12096,141.37,141.35,0.2]
[1763491003783,18.83096,141.37,141.35,0.2]
[1763491004104,18.12096,141.37,141.35,0.2]
[1763491006313,6.51385088,141.39,141.35,0.2]
[1763491006512,0.71,141.38,141.35,0.2]
[1763491009115,6.51385088,141.38,141.35,0.2]
[1763491011008,5.80385088,141.38,141.35,0.2]
[1763491011208,0.71,141.37,141.35,0.2]
[1763491011591,6.51385088,141.37,141.35,0.2]
[1763491011795,24.63481088,141.37,141.35,0.2]
[1763491012118,6.51385088,141.36,141.35,0.2]
[1763491012819,2.9376193,141.36,141.35,0.2]
[1763491014922,18.12096,141.37,141.35,0.86]
[1763491015598,18.12096,141.37,141.35,0.2]
[1763491015794,18.12096,141.37,141.35,0.86]
[1763491016019,18.12096,141.37,141.35,0.2]
[1763491016224,18.12096,141.37,141.36,0.66]
[1763491016427,2.0,141.45,141.36,0.66]
[1763491016428,2.9376193,141.43,141.36,2.8876193]
[1763491016727,4.2,141.45,141.38,2.2276193]
[1763491016893,2.0,141.52,141.41,5.79294258]
[1763491016894,5.79294258,141.47,141.41,5.79294258]
[1763491017210,18.12096,141.45,141.42,5.79294258]
[1763491017609,0.71,141.47,141.42,6.45294258]
[1763491017922,24.62390258,141.47,141.42,6.45294258]
[1763491018109,24.62390258,141.47,141.42,0.66]
[1763491018320,0.71,141.46,141.42,0.66]
[1763491018522,6.50294258,141.46,141.42,0.66]
[1763491018898,6.50294258,141.45,141.4,4.2]
[1763491019208,6.50294258,141.45,141.4,4.86]
[1763491019420,6.50294258,141.45,141.41,0.66]
[1763491019803,5.79294258,141.45,141.41,0.66]
[1763491020146,6.50294258,141.44,141.4,4.2]
[1763491020445,5.79294258,141.42,141.37,0.66]
[1763491020795,6.50294258,141.42,141.37,0.66]
[1763491021011,6.50294258,141.42,141.37,6.45294258]
[1763491021225,5.79294258,141.42,141.37,6.45294258]
[1763491021524,5.79294258,141.43,141.38,0.66]
[1763491021719,6.50294258,141.43,141.38,0.66]
[1763491022036,5.79294258,141.39,141.35,0.86]
[1763491022442,6.50294258,141.39,141.35,0.86]
[1763491022601,23.91390258,141.36,141.35,0.2]
[1763491022924,5.79294258,141.36,141.35,0.2]
[1763491023125,10.70294258,141.36,141.35,0.2]
[1763491023527,15.47121543,141.36,141.35,0.2]
[1763491023732,25.26004312,141.36,141.35,0.2]
[1763491025740,18.12096,141.34,141.33,0.2]
[1763491026050,27.90978769,141.33,141.32,2.1195257]
[1763491026206,34.41273027,141.33,141.32,2.1195257]
[1763491028331,24.62390258,141.33,141.32,2.1195257]
[1763491028508,23.91390258,141.33,141.32,2.1195257]
[1763491028712,24.62390258,141.33,141.32,2.1195257]
[1763491032827,34.41273027,141.33,141.32,2.1195257]
[1763491033152,34.41273027,141.33,141.24,0.1]
[1763491033455,5.79294258,141.27,141.24,0.82]
[1763491036627,5.96625008,141.38,141.26,15.58177027]
[1763491036820,5.79294258,141.36,141.3,5.79294258]
[1763491037019,0.71,141.38,141.31,6.51294258]
[1763491037020,5.79294258,141.37,141.31,6.51294258]
[1763491037348,18.12096,141.36,141.32,0.72]
[1763491038140,23.91390258,141.36,141.32,0.72]
[1763491039130,5.79294258,141.36,141.32,0.72]
[1763491039941,5.79294258,141.35,141.28,9.78882769]
[1763491040124,5.79294258,141.35,141.32,0.72]
[1763491040843,6.49294258,141.35,141.32,0.72]
[1763491041031,5.79294258,141.35,141.32,0.72]
[1763491041235,18.82096,141.37,141.29,5.79294258]
[1763491041236,5.79294258,141.34,141.3,0.67]
[1763491041720,5.79294258,141.35,141.3,0.67]
[1763491041920,5.79294258,141.34,141.3,0.67]
[1763491042362,5.79294258,141.34,141.26,18.12096]
[1763491042363,23.91390258,141.31,141.25,5.79294258]
[1763491042659,0.7,141.33,141.18,83.28869531]
[1763491042660,5.79294258,141.27,141.23,0.67]
[1763491043015,18.12096,141.29,141.2,0.77]
[1763491043016,5.79294258,141.25,141.2,0.77]
[1763491043443,6.49294258,141.25,141.2,0.1]
[1763491046231,5.79294258,141.25,141.21,0.67]
[1763491046549,18.12096,141.25,141.21,0.67]
[1763491046847,24.61390258,141.25,141.21,0.67]
[1763491047047,24.61390258,141.25,141.2,0.1]
[1763491047429,24.61390258,141.25,141.2,0.77]
[1763491048351,23.91390258,141.25,141.22,0.67]
[1763491048536,24.61390258,141.25,141.2,0.1]
[1763491050133,24.61390258,141.25,141.2,0.77]
[1763491052167,4.2,141.26,141.24,0.77]
[1763491052370,5.79294258,141.25,141.24,0.77]
[1763491052534,5.79294258,141.26,141.24,0.77]
[1763491052860,5.79294258,141.3,141.24,6.56294258]
[1763491053059,23.91390258,141.29,141.24,0.77]
[1763491053241,5.79294258,141.29,141.25,0.67]
[1763491053963,0.7,141.36,141.26,9.78882769]
[1763491054142,5.79294258,141.29,141.27,0.67]
[1763491054342,5.79294258,141.28,141.27,0.67]
[1763491054659,5.79294258,141.28,141.24,0.1]
[1763491054854,5.79294258,141.28,141.25,0.67]
[1763491055436,5.79294258,141.29,141.25,0.67]
[1763491056947,9.70443778,141.28,141.25,0.67]
[1763491057143,9.70443778,141.27,141.24,0.1]
[1763491057458,18.12096,141.27,141.24,0.77]
[1763491057832,9.70443778,141.29,141.24,0.77]
[1763491058058,18.12096,141.29,141.24,10.47443778]
[1763491058262,9.70443778,141.32,141.26,19.49326547]
[1763491058445,9.70443778,141.33,141.27,9.70443778]
[1763491058652,9.70443778,141.34,141.28,9.70443778]
[1763491058854,9.70443778,141.34,141.28,10.37443778]
[1763491058855,18.12096,141.33,141.28,10.37443778]
[1763491059174,27.82539778,141.33,141.29,0.67]
[1763491060178,18.12096,141.34,141.29,0.67]
[1763491060378,27.82539778,141.34,141.29,0.67]
[1763491061746,28.52539778,141.34,141.29,0.67]
[1763491062070,9.70443778,141.33,141.29,0.67]
[1763491063851,22.34096,141.35,141.29,0.67]
[1763491064167,9.70443778,141.34,141.29,0.67]
[1763491064670,9.70443778,141.33,141.29,0.67]
[1763491065455,18.12096,141.35,141.29,0.67]
[1763491065667,9.70443778,141.35,141.3,9.70443778]
[1763491066084,9.70443778,141.35,141.31,0.69]
[1763491066582,9.70443778,141.36,141.31,0.69]
[1763491066754,9.70443778,141.35,141.31,0.69]
[1763491069099,9.70443778,141.34,141.29,9.70443778]
[1763491069379,9.70443778,141.33,141.29,0.69]
[1763491069582,10.42443778,141.34,141.3,0.69]
[1763491070156,9.70443778,141.34,141.3,0.69]
[1763491070364,9.70443778,141.36,141.31,9.70443778]
[1763491070568,28.54539778,141.37,141.32,0.69]
[1763491070781,27.82539778,141.37,141.32,10.39443778]
[1763491071164,28.54539778,141.37,141.33,0.69]
[1763491072058,18.12096,141.34,141.33,0.69]
[1763491074690,18.12096,141.34,141.31,4.2]
[1763491074866,18.12096,141.34,141.32,0.69]
[1763491075274,0.72,141.36,141.32,0.69]
[1763491075590,10.42443778,141.36,141.32,0.69]
[1763491075772,9.70443778,141.35,141.32,0.69]
[1763491076183,9.70443778,141.35,141.3,4.2]
[1763491076184,10.42443778,141.35,141.3,4.89]
[1763491076382,9.70443778,141.35,141.3,4.2]
[1763491076682,9.70443778,141.33,141.3,4.89]
[1763491078089,10.42443778,141.33,141.3,4.89]
[1763491078590,10.42443778,141.33,141.27,9.70443778]
[1763491078794,27.82539778,141.32,141.28,4.89]
[1763491079268,28.54539778,141.33,141.28,4.89]
[1763491079463,28.54539778,141.33,141.29,0.69]
[1763491080270,18.12096,141.3,141.27,0.69]
[1763491081563,9.70443778,141.28,141.24,0.79]
[1763491081767,18.84096,141.29,141.24,0.1]
[1763491081768,9.70443778,141.25,141.24,0.1]
[1763491082201,10.42443778,141.25,141.24,0.1]
[1763491082567,14.62443778,141.25,141.24,0.1]
[1763491083188,14.62443778,141.25,141.2,0.1]
[1763491083189,18.12096,141.22,141.2,0.1]
[1763491083401,9.70443778,141.21,141.2,0.1]
[1763491083568,10.42443778,141.21,141.2,0.1]
[1763491084279,14.62443778,141.21,141.2,0.1]
[1763491086273,9.70443778,141.21,141.2,0.1]
[1763491086677,27.82539778,141.21,141.2,0.1]
[1763491086882,18.12096,141.21,141.2,0.1]
[1763491087578,13.92443778,141.22,141.2,0.1]
[1763491088693,9.70443778,141.21,141.2,0.1]
[1763491090106,10.42443778,141.21,141.2,0.1]
[1763491091208,10.50882769,141.21,141.2,0.1]
[1763491091383,38.33422547,141.21,141.2,0.1]
[1763491091591,20.21326547,141.21,141.2,0.1]
[1763491092193,10.42443778,141.21,141.2,0.1]
[1763491092916,27.82539778,141.21,141.2,0.1]
[1763491093285,28.50539778,141.21,141.2,0.1]
[1763491093487,27.82539778,141.21,141.2,0.1]
[1763491098217,23.02096,141.22,141.2,0.1]
[1763491098400,9.70443778,141.21,141.2,0.79]
[1763491098599,9.70443778,141.21,141.2,0.1]
[1763491106104,10.36443778,141.21,141.2,0.1]
[1763491106624,20.15326547,141.21,141.2,0.1]
[1763491113311,9.70443778,141.23,141.2,0.78]
[1763491113521,3.50060646,141.28,141.2,0.78]
[1763491113720,9.70443778,141.25,141.2,0.78]
[1763491113928,18.12096,141.22,141.2,0.78]
[1763491115341,9.70443778,141.24,141.2,0.78]
[1763491115913,9.70443778,141.25,141.2,0.78]
[1763491116108,9.70443778,141.26,141.2,10.48443778]
[1763491116514,9.70443778,141.27,141.21,10.38443778]
[1763491116721,18.12096,141.24,141.21,10.38443778]
[1763491116915,9.70443778,141.27,141.22,0.68]
[1763491117120,4.22,141.29,141.23,9.70443778]
[1763491117121,13.92443778,141.29,141.23,9.70443778]
[1763491117340,27.82539778,141.28,141.22,10.38443778]
[1763491117542,27.82539778,141.28,141.23,0.68]
[1763491118618,4.22,141.29,141.23,0.68]
[1763491118820,0.66,141.34,141.25,5.80634137]
[1763491119022,5.80634137,141.31,141.25,5.80634137]
[1763491119248,5.80634137,141.31,141.26,0.68]
[1763491119422,5.80634137,141.32,141.26,6.48634137]
[1763491119621,5.80634137,141.34,141.28,5.80634137]
[1763491119840,0.66,141.37,141.3,5.80634137]
[1763491119841,5.80634137,141.36,141.3,5.80634137]
[1763491120020,18.12096,141.36,141.3,5.80634137]
[1763491120336,23.92730137,141.36,141.31,0.68]
[1763491120725,4.32,141.39,141.31,6.48634137]
[1763491120938,5.80634137,141.37,141.31,6.48634137]
[1763491121218,18.12096,141.34,141.32,0.68]
[1763491122428,5.80634137,141.36,141.32,0.68]
[1763491122638,5.80634137,141.35,141.32,0.68]
[1763491122946,5.80634137,141.33,141.3,0.68]
[1763491123133,5.80634137,141.34,141.3,0.68]
[1763491123844,5.80634137,141.32,141.28,0.68]
[1763491124026,5.80634137,141.32,141.26,19.79516906]
[1763491124226,5.80634137,141.32,141.29,0.68]
[1763491124541,0.7,141.35,141.29,0.68]
[1763491124732,5.80634137,141.32,141.29,0.68]
[1763491126530,0.7,141.35,141.29,0.68]
[1763491126739,5.80634137,141.33,141.29,0.68]
[1763491127450,23.92730137,141.34,141.29,0.68]
[1763491127652,18.12096,141.34,141.29,6.48634137]
[1763491128152,18.12096,141.34,141.3,0.68]
[1763491129429,5.80634137,141.33,141.3,0.68]
[1763491131755,18.12096,141.34,141.3,6.48634137]
[1763491131976,18.12096,141.34,141.31,0.68]
[1763491133022,23.92730137,141.34,141.31,0.68]
[1763491133230,5.80634137,141.32,141.28,0.68]
[1763491133456,5.80634137,141.31,141.28,0.68]
[1763491133834,5.80634137,141.3,141.26,0.68]
[1763491134068,5.80634137,141.3,141.27,0.68]
[1763491134452,5.80634137,141.31,141.27,0.68]
[1763491135351,5.80634137,141.3,141.27,0.68]
[1763491135664,5.80634137,141.31,141.27,0.68]
[1763491136041,5.80634137,141.32,141.27,0.68]
[1763491136254,23.92730137,141.33,141.27,6.48634137]
[1763491136450,18.12096,141.33,141.28,6.48634137]
[1763491136648,23.92730137,141.34,141.28,6.48634137]
[1763491136872,23.92730137,141.34,141.29,0.68]
[1763491137158,5.80634137,141.33,141.29,0.68]
[1763491137663,5.80634137,141.32,141.29,0.68]
[1763491138152,5.80634137,141.33,141.29,0.68]
[1763491138461,5.80634137,141.32,141.29,0.68]
[1763491139164,5.80634137,141.33,141.29,0.68]
[1763491139957,6.50634137,141.33,141.29,0.68]
[1763491140344,6.50634137,141.32,141.28,4.2]
[1763491140660,5.80634137,141.32,141.28,4.88]
[1763491140870,5.80634137,141.32,141.29,0.68]
[1763491141169,6.50634137,141.32,141.29,0.68]
[1763491141465,5.80634137,141.32,141.29,0.68]
[1763491142165,5.80634137,141.31,141.29,0.68]
[1763491142539,5.80634137,141.32,141.29,0.68]
[1763491143255,23.92730137,141.33,141.29,0.68]
[1763491143465,24.62730137,141.33,141.29,0.68]
[1763491143640,5.80634137,141.32,141.29,0.68]
[1763491144762,2.22899159,141.3,141.27,0.68]
[1763491145660,20.34995159,141.31,141.27,0.68]
[1763491145859,18.12096,141.31,141.27,0.68]
[1763491146448,20.34995159,141.31,141.27,0.68]
[1763491146957,5.80416842,141.32,141.27,0.68]
[1763491147880,0.7,141.38,141.31,5.80416842]
[1763491148176,18.12096,141.34,141.31,10.00416842]
[1763491148376,18.12096,141.34,141.32,0.68]
[1763491148582,0.1,141.39,141.33,5.80416842]
[1763491148785,0.1,141.39,141.35,5.80416842]
[1763491148967,18.12096,141.38,141.34,5.80416842]
[1763491149353,0.1,141.39,141.31,4.2]
[1763491149354,0.1,141.39,141.35,6.48416842]
[1763491149558,0.1,141.39,141.36,4.88]
[1763491149979,0.1,141.39,141.37,0.68]
[1763491152280,0.1,141.39,141.36,4.2]
[1763491152461,5.90416842,141.39,141.36,0.71]
[1763491152866,0.1,141.39,141.36,0.71]
[1763491153958,6.50416842,141.38,141.35,4.2]
[1763491154572,5.80416842,141.38,141.35,4.91]
[1763491155082,5.80416842,141.38,141.35,4.2]
[1763491155391,5.90416842,141.39,141.35,4.91]
[1763491155600,6.60416842,141.39,141.35,4.91]
[1763491156164,5.90416842,141.39,141.36,0.71]
[1763491156467,6.60416842,141.39,141.36,0.71]
[1763491156694,5.80416842,141.38,141.32,5.80416842]
[1763491156905,5.80416842,141.38,141.33,4.2]
[1763491156906,5.80416842,141.37,141.33,4.2]
[1763491157190,6.50416842,141.37,141.33,4.91]
[1763491157975,5.80416842,141.37,141.34,0.71]
[1763491158173,6.50416842,141.37,141.34,0.71]
[1763491158375,6.50416842,141.37,141.33,4.2]
[1763491158594,6.50416842,141.37,141.33,4.91]
[1763491158803,0.1,141.39,141.34,0.71]
[1763491158964,5.80416842,141.37,141.34,0.71]
[1763491159158,5.80416842,141.37,141.33,4.2]
[1763491159376,6.50416842,141.37,141.33,4.91]
[1763491159564,6.50416842,141.37,141.33,4.2]
[1763491159774,6.50416842,141.37,141.33,4.91]
[1763491160492,5.80416842,141.36,141.33,4.91]
[1763491160698,5.80416842,141.35,141.31,0.71]
[1763491161077,0.69,141.37,141.31,0.71]
[1763491161298,5.80416842,141.35,141.31,0.71]
[1763491162082,24.61512842,141.37,141.31,0.71]
[1763491162296,5.80416842,141.36,141.31,0.71]
[1763491162465,18.12096,141.37,141.31,0.71]
[1763491162666,5.80416842,141.37,141.32,9.78882769]
[1763491162870,4.99,141.39,141.33,0.71]
[1763491163101,5.80416842,141.38,141.33,0.71]
[1763491163391,5.80416842,141.38,141.34,4.2]
[1763491163902,5.80416842,141.38,141.35,0.71]
[1763491164070,5.90416842,141.39,141.35,0.71]
[1763491164674,6.59416842,141.39,141.35,0.71]
[1763491165205,5.80416842,141.38,141.35,0.71]
[1763491166118,6.49416842,141.37,141.34,4.2]
[1763491166408,5.80416842,141.36,141.33,0.71]
[1763491166575,5.80416842,141.34,141.29,9.78882769]
[1763491166770,5.80416842,141.31,141.27,4.2]
[1763491166974,5.80416842,141.32,141.29,0.71]
[1763491167781,5.80416842,141.31,141.27,4.91]
[1763491168005,5.80416842,141.31,141.28,0.71]
[1763491169201,5.80416842,141.3,141.28,0.71]
[1763491169408,5.80416842,141.31,141.28,0.71]
[1763491170923,2.22886686,141.31,141.28,0.71]
[1763491171822,0.69,141.33,141.28,0.71]
[1763491171823,2.22886686,141.33,141.28,0.71]
[1763491172318,20.34982686,141.34,141.28,0.71]
[1763491172525,2.22886686,141.33,141.28,0.71]
[1763491173323,2.22886686,141.32,141.28,0.71]
[1763491173626,2.22886686,141.3,141.28,4.91]
[1763491173825,2.22886686,141.29,141.26,0.71]
[1763491174408,2.22886686,141.3,141.26,0.71]
[1763491176810,2.22886686,141.29,141.26,0.71]
[1763491178942,3.48328932,141.29,141.26,0.71]
[1763491182714,3.48328932,141.31,141.26,0.71]
[1763491182912,0.68,141.32,141.26,0.71]
[1763491183139,3.48328932,141.31,141.26,0.71]
[1763491183314,21.60424932,141.31,141.26,0.71]
[1763491183717,18.12096,141.31,141.26,4.19328932]
[1763491183916,3.48328932,141.31,141.26,0.71]
[1763491184129,3.48328932,141.31,141.27,0.72]
[1763491185835,4.16328932,141.31,141.27,0.72]
[1763491186031,3.48328932,141.31,141.27,0.72]
[1763491186434,18.80096,141.32,141.27,0.72]
[1763491186636,3.48328932,141.31,141.27,0.72]
[1763491188319,0.68,141.3,141.25,0.72]
[1763491188522,4.16328932,141.35,141.29,3.48328932]
[1763491188842,4.16328932,141.35,141.3,0.72]
[1763491189019,22.28424932,141.35,141.3,4.92]
[1763491189430,22.28424932,141.35,141.31,0.72]
[1763491190440,4.16328932,141.34,141.3,4.2]
[1763491190828,4.16328932,141.34,141.31,0.72]
[1763491191451,21.60424932,141.35,141.31,0.72]
[1763491191638,0.68,141.34,141.31,0.72]
[1763491192448,4.16328932,141.34,141.31,0.72]
[1763491194346,3.48328932,141.32,141.27,0.72]
[1763491194526,18.12096,141.32,141.27,0.72]
[1763491194858,18.80096,141.31,141.27,0.72]
[1763491195234,18.12096,141.31,141.27,0.72]
[1763491196645,18.12096,141.31,141.27,4.20328932]
[1763491196969,3.48328932,141.33,141.28,0.72]
[1763491197120,18.12096,141.31,141.28,0.72]
[1763491197316,18.12096,141.31,141.29,4.2]
[1763491197758,18.12096,141.32,141.3,0.72]
[1763491198044,18.12096,141.32,141.29,4.92]
[1763491198624,18.12096,141.32,141.3,0.72]
[1763491199419,3.48328932,141.34,141.3,0.72]
[1763491199649,4.16328932,141.35,141.3,0.72]
[1763491199945,18.12096,141.34,141.3,0.72]
[1763491200330,18.12096,141.34,141.3,4.20328932]
[1763491200544,4.16328932,141.36,141.3,4.20328932]
[1763491200741,13.95211701,141.38,141.32,3.48328932]
[1763491200950,13.95211701,141.38,141.33,4.2]
[1763491201139,9.78882769,141.38,141.35,9.78882769]
[1763491201342,9.78882769,141.38,141.37,3.48328932]
[1763491201547,0.1,141.39,141.37,7.68328932]
[1763491201869,0.1,141.39,141.38,0.72]
[1763491202161,0.1,141.39,141.38,13.99211701]
[1763491202362,0.1,141.39,141.36,0.72]
[1763491202538,0.1,141.39,141.37,4.2]
[1763491202937,0.1,141.39,141.38,0.72]
[1763491203353,0.1,141.39,141.37,4.2]
[1763491203561,0.1,141.39,141.37,4.92]
[1763491204042,0.1,141.39,141.37,4.2]
[1763491204948,0.1,141.39,141.37,4.92]
[1763491205652,0.1,141.39,141.38,0.72]
[1763491205963,0.1,141.39,141.38,4.20328932]
[1763491206340,0.1,141.39,141.38,13.99211701]
[1763491207359,0.1,141.39,141.38,10.50882769]
[1763491208265,0.1,141.39,141.38,13.99211701]
[1763491209065,0.1,141.48,141.43,9.78882769]
[1763491209366,0.1,141.48,141.46,9.78882769]
[1763491209557,0.1,141.48,141.46,13.27211701]
[1763491209763,0.1,141.48,141.46,13.99211701]
[1763491210147,0.1,141.48,141.46,10.50882769]
[1763491210762,0.1,141.48,141.46,14.70882769]
[1763491212061,0.1,141.48,141.46,4.92]
[1763491212259,0.1,141.48,141.46,8.40328932]
[1763491213068,0.1,141.48,141.46,4.20328932]
[1763491213268,0.1,141.48,141.46,8.40328932]
[1763491214657,0.1,141.48,141.46,4.92]
[1763491215073,0.1,141.48,141.46,8.40328932]
[1763491216654,0.1,141.48,141.46,18.19211701]
[1763491216848,0.1,141.48,141.46,14.70882769]
[1763491217047,0.1,141.48,141.46,18.19211701]
[1763491217662,0.1,141.48,141.46,13.98882769]
[1763491217861,0.1,141.48,141.46,14.67882769]
[1763491218062,0.1,141.48,141.46,18.16211701]
[1763491218892,0.1,141.48,141.44,4.17328932]
[1763491219179,0.1,141.48,141.45,4.2]
[1763491219680,0.1,141.48,141.45,4.89]
[1763491220449,0.1,141.48,141.45,4.2]
[1763491220776,0.67,141.46,141.42,9.78882769]
[1763491221078,0.1,141.47,141.43,4.91]
[1763491221376,0.77,141.47,141.43,4.91]
[1763491221884,0.77,141.47,141.36,7.77657864]
[1763491221885,3.48328932,141.44,141.23,35.73434151]
[1763491222053,0.58,141.43,141.35,0.71]
[1763491222379,18.12096,141.42,141.35,4.91]
[1763491222599,3.48328932,141.4,141.35,4.91]
[1763491222751,18.12096,141.42,141.36,0.71]
[1763491222957,27.80869827,141.42,141.36,0.71]
[1763491223159,0.58,141.43,141.36,10.39773827]
[1763491223471,9.68773827,141.42,141.37,0.71]
[1763491223654,9.68773827,141.42,141.38,4.2]
[1763491223869,9.68773827,141.41,141.38,4.2]
[1763491224074,10.26773827,141.41,141.38,4.2]
[1763491224272,0.58,141.4,141.37,4.2]
[1763491224498,9.68773827,141.39,141.37,4.2]
[1763491224688,9.68773827,141.4,141.37,4.2]
[1763491225272,10.26773827,141.4,141.37,4.2]
[1763491225897,9.68773827,141.4,141.37,4.2]
[1763491226878,9.68773827,141.41,141.37,4.2]
[1763491227197,0.58,141.42,141.37,4.91]
[1763491227417,10.26773827,141.41,141.37,4.91]
[1763491227901,9.68773827,141.41,141.37,4.91]
[1763491228098,10.26773827,141.41,141.37,4.91]
[1763491230397,9.68773827,141.41,141.37,4.2]
[1763491230598,9.68773827,141.41,141.38,0.71]
[1763491230980,0.68,141.47,141.39,9.68773827]
[1763491231300,9.68773827,141.44,141.4,4.91]
[1763491231673,0.58,141.44,141.4,0.71]
[1763491231883,28.38869827,141.44,141.4,4.91]
[1763491232294,9.68773827,141.43,141.4,0.71]
[1763491232981,9.68773827,141.41,141.35,0.71]
[1763491233182,9.68773827,141.4,141.36,4.2]
[1763491233676,9.68773827,141.4,141.36,4.91]
[1763491233878,9.68773827,141.4,141.37,0.71]
[1763491234282,9.68773827,141.41,141.37,0.71]
[1763491234496,9.68773827,141.41,141.37,4.91]
[1763491235007,9.68773827,141.41,141.38,4.91]
[1763491235301,9.68773827,141.41,141.38,0.71]
[1763491235500,9.68773827,141.41,141.38,4.91]
[1763491236197,9.68773827,141.43,141.39,0.71]
[1763491236385,9.68773827,141.44,141.39,10.39773827]
[1763491236808,9.68773827,141.44,141.4,0.71]
[1763491237009,9.68773827,141.43,141.4,0.71]
[1763491237815,0.58,141.45,141.4,0.71]
[1763491238109,9.68773827,141.44,141.4,0.71]
[1763491238612,9.68773827,141.43,141.4,0.71]
[1763491239408,9.68773827,141.45,141.4,0.71]
[1763491239594,0.1,141.47,141.43,9.68773827]
[1763491239794,0.1,141.47,141.44,4.2]
[1763491240115,0.1,141.47,141.44,4.91]
[1763491240299,0.1,141.47,141.45,0.71]
[1763491242629,0.1,141.47,141.45,4.91]
[1763491243507,0.1,141.47,141.46,0.7]
[1763491243910,0.1,141.47,141.46,6.49010915]
[1763491244406,0.1,141.47,141.46,16.27893684]
[1763491244613,0.1,141.47,141.46,20.47893684]
[1763491246808,0.1,141.47,141.46,16.27893684]
[1763491246998,0.1,141.47,141.46,20.47893684]
[1763491247993,0.1,141.47,141.46,14.68882769]
[1763491248194,0.1,141.47,141.46,20.47893684]
[1763491249195,0.1,141.48,141.47,9.78882769]
[1763491249398,0.1,141.48,141.47,16.27893684]
[1763491251919,0.1,141.49,141.47,78.07893684]
[1763491252219,0.1,141.49,141.48,10.49564137]
[1763491252410,0.1,141.49,141.48,0.7]
[1763491252595,0.1,141.49,141.48,16.27893684]
[1763491252800,0.1,141.49,141.48,20.47893684]
[1763491254418,0.1,141.49,141.48,0.7]
[1763491254594,0.1,141.49,141.48,6.49010915]
[1763491254800,0.1,141.49,141.47,4.2]
[1763491255000,0.1,141.49,141.48,16.27893684]
[1763491255628,0.1,141.5,141.49,15.57893684]
[1763491255828,0.1,141.5,141.49,16.27893684]
[1763491257328,0.1,141.5,141.49,20.47893684]